bitfinex-derivatives/quotes_BTCF0:USTF0_20250129
["timestamp","ask_amount","ask_price","bid_price","bid_amount"]
[1738177414332,0.93339459,102250.0,102190.0,0.195736]
[1738177414333,0.93339459,102210.0,102190.0,0.195736]
[1738177414530,1.12909359,102210.0,102180.0,0.195743]
[1738177414833,9.779e-05,102210.0,102200.0,0.29766594]
[1738177415034,0.36089779,102210.0,102200.0,0.29766594]
[1738177415329,9.779e-05,102210.0,102200.0,0.40146202]
[1738177415627,0.36089779,102210.0,102200.0,0.29766594]
[1738177416031,0.195776,102170.0,102160.0,0.04632284]
[1738177416330,0.195776,102170.0,102100.0,1.67405649]
[1738177416331,0.55667156,102120.0,102100.0,1.3548802]
[1738177416525,0.55667156,102120.0,102110.0,0.28214549]
[1738177416526,1.12926615,102120.0,102110.0,0.28214549]
[1738177416721,0.195891,102110.0,102100.0,0.8733912]
[1738177416924,0.556691,102110.0,102100.0,0.04274371]
[1738177417228,0.19591,102100.0,102090.0,1.49430911]
[1738177417420,0.3608,102100.0,102060.0,0.46639905]
[1738177417620,0.3608,102080.0,102060.0,0.46639905]
[1738177417835,0.3608,102080.0,102070.0,2.44853256]
[1738177418030,0.36094685,102100.0,102070.0,2.44853256]
[1738177418326,0.00014685,102100.0,102080.0,0.556741]
[1738177418528,0.00011848,102090.0,102080.0,0.556741]
[1738177418828,1e-08,102100.0,102080.0,0.46554004]
[1738177419133,0.3608,102120.0,102090.0,0.195929]
[1738177419323,0.3608,102120.0,102090.0,0.556729]
[1738177419721,0.3608,102120.0,102090.0,0.195929]
[1738177419923,7.285e-05,102110.0,102100.0,0.3608]
[1738177420120,0.28783138,102150.0,102100.0,0.5567]
[1738177420332,0.81003138,102160.0,102130.0,0.3608]
[1738177420535,0.5222,102160.0,102130.0,0.3608]
[1738177420724,0.26409428,102150.0,102130.0,0.3608]
[1738177420922,0.34871065,102170.0,102140.0,0.3608]
[1738177421123,0.34871065,102170.0,102120.0,0.556665]
[1738177421326,0.3608,102140.0,102130.0,0.00014685]
[1738177421732,0.58783138,102140.0,102110.0,0.3608]
[1738177422031,0.64863138,102140.0,102110.0,0.3608]
[1738177422229,0.64863138,102140.0,102120.0,0.3608]
[1738177422424,0.3608,102140.0,102110.0,0.556686]
[1738177422829,0.64863138,102140.0,102110.0,0.3608]
[1738177423035,0.65463138,102140.0,102110.0,0.3608]
[1738177423231,0.29397823,102140.0,102110.0,0.36094685]
[1738177423435,0.26623877,102130.0,102110.0,0.38051762]
[1738177423933,0.26623877,102130.0,102110.0,0.19603485]
[1738177424130,0.26623877,102130.0,102120.0,0.195871]
[1738177424334,0.00614685,102140.0,102120.0,0.35096783]
[1738177424529,0.00614685,102140.0,102130.0,0.556652]
[1738177424937,0.00014685,102140.0,102130.0,0.556652]
[1738177425236,0.00414685,102140.0,102130.0,0.556652]
[1738177425436,8.5e-07,102140.0,102130.0,0.556652]
[1738177425936,0.0014698,102160.0,102150.0,0.195814]
[1738177426122,0.0014698,102160.0,102150.0,0.917414]
[1738177426529,8e-07,102160.0,102150.0,0.917414]
[1738177428432,0.0010008,102160.0,102150.0,0.917414]
[1738177428730,0.0010008,102160.0,102140.0,0.36094685]
[1738177428945,8e-07,102160.0,102140.0,0.36094685]
[1738177429231,8e-07,102160.0,102150.0,0.3608]
[1738177429430,0.28783218,102160.0,102150.0,0.3608]
[1738177429634,0.28783218,102160.0,102140.0,0.36094685]
[1738177429635,1.14442818,102160.0,102140.0,0.36094685]
[1738177429828,0.84542818,102160.0,102140.0,0.36594685]
[1738177430233,0.3608,102150.0,102140.0,0.00514685]
[1738177430535,0.195848,102140.0,102110.0,0.3608]
[1738177430738,0.84448638,102130.0,102110.0,0.3608]
[1738177430934,0.84448638,102130.0,102100.0,0.43586921]
[1738177430935,0.3608,102120.0,102100.0,0.43586921]
[1738177431135,0.556672,102120.0,102100.0,0.3608]
[1738177431343,0.84452238,102110.0,102080.0,0.01355321]
[1738177431527,0.48372238,102110.0,102080.0,0.20950121]
[1738177431723,0.64863138,102110.0,102100.0,0.00014685]
[1738177431927,0.50326348,102120.0,102090.0,0.195929]
[1738177432132,0.14246348,102120.0,102100.0,0.556707]
[1738177432329,0.14246348,102120.0,102100.0,0.3608]
[1738177432637,0.50326348,102120.0,102100.0,0.556706]
[1738177432930,0.11377193,102110.0,102100.0,0.556706]
[1738177433332,0.11577193,102110.0,102100.0,0.556706]
[1738177433531,0.11577193,102110.0,102080.0,0.3645365]
[1738177433836,0.11577193,102110.0,102090.0,0.195916]
[1738177434235,0.002,102110.0,102090.0,0.195916]
[1738177434625,0.558699,102110.0,102080.0,0.0037365]
[1738177434827,0.3608,102100.0,102080.0,0.0037365]
[1738177435028,0.3608,102100.0,102060.0,0.6689855]
[1738177435029,0.1960013,102090.0,102060.0,0.6689855]
[1738177435236,0.5568013,102090.0,102060.0,0.3081855]
[1738177435432,0.3608,102080.0,102060.0,0.0736]
[1738177435632,0.556754,102080.0,102060.0,0.0736]
[1738177435827,0.3608,102080.0,102060.0,0.0736]
[1738177436032,0.19605164,102070.0,102060.0,0.0736]
[1738177436228,0.55685164,102070.0,102060.0,0.0736]
[1738177436645,0.55685164,102070.0,102050.0,0.025]
[1738177436646,0.195987,102060.0,102050.0,0.025]
[1738177436832,0.556787,102060.0,102050.0,0.025]
[1738177437238,0.6608,102060.0,102030.0,0.025]
[1738177437537,0.917625,102040.0,102030.0,0.025]
[1738177437738,0.91772821,102040.0,102030.0,0.025]
[1738177437935,0.196064,102020.0,102000.0,6.6]
[1738177438137,0.196064,102020.0,102000.0,5.1]
[1738177438138,0.84480496,102010.0,102000.0,5.1]
[1738177438444,0.84471438,102010.0,102000.0,1.00168822]
[1738177438752,0.196102,102000.0,101990.0,0.025]
[1738177439039,0.556902,102000.0,101990.0,0.025]
[1738177439239,0.856902,102000.0,101990.0,0.01982645]
[1738177439448,0.556902,102000.0,101990.0,0.01351481]
[1738177439743,0.3608,102000.0,101990.0,0.20963581]
[1738177439941,0.3608,102000.0,101990.0,0.01351481]
[1738177440742,0.556902,102000.0,101990.0,0.01351481]
[1738177441244,0.196135,101990.0,101970.0,0.025]
[1738177441444,0.93519159,101980.0,101970.0,0.025]
[1738177441646,0.196191,101960.0,101940.0,0.025]
[1738177441941,0.72167874,101950.0,101940.0,0.025]
[1738177442143,0.36087874,101950.0,101940.0,0.025]
[1738177442443,0.36094685,101960.0,101950.0,0.196198]
[1738177442846,0.67426401,101960.0,101950.0,0.196198]
[1738177443044,0.31346401,101960.0,101950.0,0.196198]
[1738177443245,0.31346401,101960.0,101940.0,0.3608]
[1738177443440,0.31346401,101960.0,101950.0,1.696198]
[1738177443638,0.31346401,101960.0,101950.0,1.5]
[1738177443639,0.67426401,101960.0,101950.0,1.5]
[1738177443934,0.67434892,101960.0,101920.0,0.75300301]
[1738177444141,0.3608,101940.0,101930.0,0.19622]
[1738177444340,0.3608,101940.0,101920.0,0.53941142]
[1738177444341,0.36090321,101940.0,101920.0,0.53941142]
[1738177444542,0.00010321,101930.0,101920.0,0.17861142]
[1738177444745,0.36090321,101930.0,101920.0,0.1018]
[1738177444936,0.00010321,101930.0,101920.0,0.1018]
[1738177445138,2.1e-07,101930.0,101920.0,0.87243159]
[1738177445341,0.14246401,101940.0,101930.0,0.19622]
[1738177445536,0.3608,101960.0,101950.0,0.19617]
[1738177445737,0.3608,101960.0,101950.0,0.196175]
[1738177445947,0.3608,101960.0,101950.0,1.71359159]
[1738177446140,0.36227228,101970.0,101950.0,1.71359159]
[1738177446346,0.3608,101960.0,101950.0,1.71359159]
[1738177446838,0.47499967,101960.0,101950.0,1.71359159]
[1738177447040,0.47499967,101960.0,101950.0,1.5]
[1738177447337,0.67116267,101960.0,101940.0,0.00014685]
[1738177447536,0.556982,101950.0,101940.0,0.00014685]
[1738177448343,0.3608,101950.0,101940.0,0.00014685]
[1738177448551,0.47499967,101960.0,101940.0,0.00014685]
[1738177448842,0.3618,101950.0,101940.0,0.21373844]
[1738177449044,0.001,101950.0,101940.0,0.21373844]
[1738177449349,0.47499967,101960.0,101940.0,0.21373844]
[1738177449652,0.556981,101950.0,101940.0,0.00014685]
[1738177451344,0.196181,101950.0,101940.0,0.00014685]
[1738177451647,0.556981,101950.0,101940.0,0.00014685]
[1738177452147,0.557981,101950.0,101940.0,0.00014685]
[1738177452842,0.556981,101950.0,101940.0,0.00114685]
[1738177453044,0.3608,101950.0,101940.0,0.00114685]
[1738177453253,0.556968,101960.0,101940.0,0.00114685]
[1738177453439,0.556968,101960.0,101940.0,0.41093944]
[1738177453637,0.3608,101950.0,101940.0,0.41093944]
[1738177453945,0.3608,101960.0,101940.0,0.19734785]
[1738177454151,0.08710268,101970.0,101950.0,0.556981]
[1738177454346,0.11419967,101980.0,101970.0,0.196143]
[1738177454554,0.19950062,101990.0,101980.0,0.196123]
[1738177454846,0.48450151,102000.0,101990.0,0.196104]
[1738177455048,0.196003,102050.0,102020.0,0.196038]
[1738177455244,0.556774,102060.0,102030.0,0.77040859]
[1738177455442,0.00147045,102070.0,102050.0,0.3608]
[1738177455641,0.00970503,102080.0,102060.0,0.19597]
[1738177455642,0.556733,102080.0,102060.0,0.19597]
[1738177455840,0.195935,102080.0,102050.0,0.89734629]
[1738177456047,0.3608,102100.0,102060.0,0.195967]
[1738177456243,0.3608,102110.0,102070.0,0.3608]
[1738177456441,0.00014685,102080.0,102070.0,0.77032859]
[1738177456642,0.19608285,102080.0,102060.0,0.3608]
[1738177456852,0.00014685,102080.0,102070.0,0.57453844]
[1738177457041,0.196066,102010.0,102000.0,0.00147034]
[1738177457241,0.196107,101990.0,101970.0,0.210857]
[1738177457443,0.3608,102010.0,101970.0,0.22831159]
[1738177457645,0.09811403,102080.0,102000.0,0.81956718]
[1738177457646,0.57439159,102050.0,102000.0,0.81956718]
[1738177457947,0.3608,102010.0,102000.0,0.196085]
[1738177458151,0.3608,102050.0,102000.0,0.68616883]
[1738177458338,0.36094685,102040.0,102010.0,0.00014685]
[1738177458543,0.36094685,102040.0,102020.0,1.5]
[1738177458851,0.00014685,102040.0,102030.0,0.196028]
[1738177459350,0.00014685,102040.0,102020.0,2.08911159]
[1738177459351,0.36094685,102040.0,102020.0,1.696047]
[1738177459537,0.36094685,102040.0,102020.0,1.5]
[1738177459538,0.55695985,102040.0,102020.0,1.5]
[1738177459849,0.196047,102020.0,102010.0,0.00014685]
[1738177460048,0.556847,102020.0,102010.0,0.00014685]
[1738177460237,0.57439159,102020.0,102010.0,0.19619385]
[1738177460752,0.77043859,102020.0,102010.0,0.00014685]
[1738177461050,0.57439159,102020.0,102010.0,0.19606601]
[1738177461255,0.00014685,102040.0,102030.0,0.196028]
[1738177461256,0.21373844,102040.0,102030.0,0.196028]
[1738177461457,0.00014685,102040.0,102030.0,0.196028]
[1738177461645,8.5e-07,102040.0,102030.0,0.496028]
[1738177461957,8.5e-07,102040.0,102030.0,1.29449534]
[1738177462143,8.5e-07,102040.0,102030.0,0.98287895]
[1738177462452,8.5e-07,102040.0,102030.0,0.496028]
[1738177462651,8.5e-07,102040.0,102030.0,0.70798017]
[1738177462846,0.3608,102090.0,102080.0,0.195932]
[1738177463549,0.3608,102090.0,102050.0,0.19745075]
[1738177463853,0.7216,102060.0,102050.0,0.19745075]
[1738177464049,0.3608,102070.0,102060.0,0.195962]
[1738177464449,0.3608,102070.0,102050.0,0.00146975]
[1738177464853,0.3608,102060.0,102050.0,0.00146975]
[1738177465041,0.57439159,102060.0,102050.0,0.00246975]
[1738177465248,0.3608,102060.0,102050.0,0.001]
[1738177466047,0.3608,102060.0,102040.0,0.00014685]
[1738177466048,0.57439159,102060.0,102040.0,0.00014685]
[1738177466243,0.3608,102050.0,102040.0,1e-08]
[1738177467547,0.55683,102040.0,102010.0,0.196083]
[1738177467748,0.3608,102020.0,102010.0,0.40967459]
[1738177467957,0.196016,102050.0,102010.0,0.68301836]
[1738177467958,0.3608,102040.0,102010.0,0.68301836]
[1738177468151,0.3608,102050.0,102030.0,0.21359159]
[1738177468359,0.3608,102050.0,102040.0,0.196025]
[1738177468555,0.3628,102050.0,102040.0,0.196025]
[1738177469167,0.17237102,102070.0,102060.0,0.195987]
[1738177469451,0.17237102,102070.0,102060.0,0.556787]
[1738177469653,0.72914702,102070.0,102050.0,0.21359159]
[1738177469854,0.3608,102060.0,102050.0,0.40959759]
[1738177470062,0.17237102,102070.0,102060.0,0.195987]
[1738177470248,0.53317102,102070.0,102060.0,0.195987]
[1738177470449,0.72914302,102070.0,102050.0,0.19614885]
[1738177470650,0.72914302,102070.0,102060.0,0.195987]
[1738177470651,0.53317102,102070.0,102060.0,0.195987]
[1738177470855,0.17237102,102070.0,102060.0,0.195987]
[1738177471459,0.22982803,102100.0,102060.0,2.37101366]
[1738177471660,0.22982803,102100.0,102090.0,0.40952059]
[1738177471856,0.22982803,102100.0,102090.0,0.77032059]
[1738177472157,0.20099703,102110.0,102100.0,0.19591]
[1738177472465,0.20099703,102110.0,102090.0,0.4573896]
[1738177472646,0.20099703,102110.0,102090.0,0.57439159]
[1738177472956,0.20099703,102110.0,102100.0,1.69591]
[1738177473145,0.20099703,102110.0,102090.0,0.19607485]
[1738177473146,0.56179703,102110.0,102090.0,0.19607485]
[1738177473347,0.3608,102100.0,102090.0,0.19607485]
[1738177473551,0.56179703,102110.0,102100.0,0.19591]
[1738177473552,0.20099703,102110.0,102100.0,0.19591]
[1738177473846,1e-08,102120.0,102110.0,0.195891]
[1738177474052,1e-08,102120.0,102110.0,0.77028259]
[1738177474354,1e-08,102120.0,102110.0,1.28120182]
[1738177474558,1e-08,102120.0,102110.0,2.78120182]
[1738177474755,0.20246795,102170.0,102150.0,0.19581]
[1738177475057,0.20246795,102170.0,102160.0,0.195795]
[1738177475263,0.20099847,102170.0,102160.0,0.195795]
[1738177475464,0.20099847,102170.0,102160.0,0.556595]
[1738177475959,0.56179847,102170.0,102130.0,0.94716]
[1738177476164,0.3608,102150.0,102130.0,0.782198]
[1738177476353,0.3608,102150.0,102140.0,0.195829]
[1738177476553,0.3608,102150.0,102140.0,0.00014685]
[1738177476554,0.556622,102150.0,102140.0,0.00014685]
[1738177477253,0.19586,102130.0,102110.0,0.003]
[1738177477453,0.3608,102120.0,102110.0,0.195891]
[1738177477655,0.3608,102120.0,102100.0,7.365e-05]
[1738177477851,0.3608,102110.0,102100.0,7.365e-05]
[1738177478351,0.3608,102110.0,102060.0,0.28906132]
[1738177478352,0.57439159,102110.0,102060.0,0.07546973]
[1738177478557,0.3608,102080.0,102070.0,0.195968]
[1738177478949,0.3608,102080.0,102070.0,0.00014685]
[1738177479154,0.556748,102080.0,102070.0,0.00014685]
[1738177479352,0.55682165,102080.0,102070.0,0.00014685]
[1738177479659,7.365e-05,102080.0,102050.0,0.3608]
[1738177479848,7.365e-05,102080.0,102070.0,0.195968]
[1738177480450,0.00107365,102080.0,102070.0,0.195968]
[1738177480757,8.5e-07,102090.0,102080.0,0.195948]
[1738177480963,8.5e-07,102090.0,102080.0,0.77033959]
[1738177481156,8.5e-07,102090.0,102080.0,1.18390746]
[1738177481353,0.55810371,102140.0,102080.0,2.63490304]
[1738177481556,0.36226971,102140.0,102130.0,0.195852]
[1738177481753,0.00146971,102140.0,102100.0,0.57586071]
[1738177481963,0.36226971,102140.0,102120.0,0.195853]
[1738177482156,0.00146971,102140.0,102130.0,0.195852]
[1738177482464,0.60203377,102170.0,102130.0,0.46627066]
[1738177482654,0.60203377,102170.0,102160.0,0.195795]
[1738177482959,0.50302639,102200.0,102190.0,0.195737]
[1738177482960,0.30730239,102200.0,102190.0,0.195737]
[1738177483167,0.30730239,102200.0,102190.0,0.556537]
[1738177483465,0.3608,102230.0,102190.0,0.556537]
[1738177483466,0.25168006,102210.0,102190.0,0.3608]
[1738177483649,0.25182691,102210.0,102200.0,0.195718]
[1738177483853,0.61262691,102210.0,102180.0,0.19588885]
[1738177484058,0.3608,102200.0,102180.0,0.55668885]
[1738177484264,0.25182691,102210.0,102190.0,0.195737]
[1738177484462,0.3608,102200.0,102180.0,0.00014685]
[1738177484659,0.3608,102190.0,102180.0,0.00014685]
[1738177485067,0.556538,102190.0,102180.0,0.00014685]
[1738177485359,0.64818976,102190.0,102150.0,7.029e-05]
[1738177485563,0.556586,102170.0,102150.0,0.19588429]
[1738177485749,0.3608,102160.0,102150.0,0.19588429]
[1738177486058,0.556562,102180.0,102150.0,0.19588029]
[1738177486262,0.3608,102160.0,102150.0,7.029e-05]
[1738177486658,0.556562,102180.0,102150.0,0.19788429]
[1738177486861,0.3608,102160.0,102150.0,0.19788429]
[1738177487164,0.3608,102160.0,102150.0,0.00207029]
[1738177487357,0.36094685,102170.0,102150.0,7.029e-05]
[1738177487561,0.001,102160.0,102150.0,0.20287829]
[1738177487763,0.3618,102160.0,102150.0,0.00707029]
[1738177488159,0.3618,102160.0,102150.0,0.20288429]
[1738177488958,0.001,102160.0,102150.0,0.20288429]
[1738177489159,0.36094685,102170.0,102150.0,0.00407029]
[1738177489359,0.3608,102160.0,102150.0,0.19988429]
[1738177489559,0.3608,102160.0,102150.0,0.00407029]
[1738177489959,0.3618,102160.0,102150.0,0.20288429]
[1738177490263,0.3618,102160.0,102150.0,0.00707029]
[1738177490865,0.557595,102160.0,102150.0,0.00707029]
[1738177491262,0.557595,102160.0,102150.0,0.007]
[1738177491762,0.001,102160.0,102150.0,0.202814]
[1738177491958,0.3618,102160.0,102150.0,0.007]
[1738177492364,0.557595,102160.0,102150.0,0.007]
[1738177493373,0.556595,102160.0,102140.0,0.19597685]
[1738177493571,0.3608,102150.0,102140.0,0.19597685]
[1738177494071,0.3608,102160.0,102140.0,0.00014685]
[1738177494270,0.36094685,102170.0,102160.0,0.195795]
[1738177494472,0.36094685,102170.0,102150.0,0.195814]
[1738177494668,0.3608,102160.0,102140.0,0.19597385]
[1738177494868,0.3608,102150.0,102140.0,1.69597385]
[1738177496466,0.36094685,102170.0,102140.0,1.50014685]
[1738177496684,0.36094685,102170.0,102160.0,0.195795]
[1738177497063,0.00014685,102170.0,102160.0,0.195795]
[1738177498073,8.5e-07,102170.0,102160.0,0.30476209]
[1738177498281,8.5e-07,102170.0,102160.0,1.25295185]
[1738177498578,8.5e-07,102170.0,102160.0,1.35083272]
[1738177498778,0.14408693,102220.0,102160.0,1.16975772]
[1738177499073,0.70057293,102220.0,102190.0,0.195722]
[1738177499376,0.3608,102200.0,102190.0,0.195722]
[1738177499678,0.556522,102200.0,102180.0,0.19721093]
[1738177499879,0.3608,102190.0,102180.0,0.19721093]
[1738177500276,0.3608,102190.0,102180.0,0.19735778]
[1738177500575,0.36094685,102200.0,102190.0,0.195738]
[1738177500880,0.36094685,102200.0,102180.0,1.50361478]
[1738177501071,0.3608,102190.0,102180.0,0.19937178]
[1738177501376,8.5e-07,102200.0,102190.0,0.195738]
[1738177501679,0.50488693,102230.0,102220.0,0.19568]
[1738177501869,0.70054993,102230.0,102210.0,0.195696]
[1738177502065,0.3608,102220.0,102190.0,1.5]
[1738177502265,0.79227669,102230.0,102190.0,1.5]
[1738177502467,0.3608,102210.0,102200.0,0.195715]
[1738177502876,0.556502,102210.0,102190.0,0.195731]
[1738177503079,0.36094685,102220.0,102190.0,0.00014685]
[1738177503377,0.556518,102200.0,102190.0,0.00014685]
[1738177503674,0.51724685,102220.0,102200.0,0.195708]
[1738177503877,0.36094685,102220.0,102190.0,0.00014685]
[1738177504076,0.36094685,102220.0,102190.0,0.19588185]
[1738177504077,0.3608,102200.0,102190.0,0.19588185]
[1738177504277,0.556511,102210.0,102190.0,0.19587985]
[1738177504482,0.3608,102200.0,102190.0,0.19588085]
[1738177504877,0.556518,102200.0,102190.0,0.00014685]
[1738177505082,0.3608,102200.0,102190.0,0.19588385]
[1738177505281,0.556518,102200.0,102190.0,0.00014685]
[1738177505783,0.36394685,102220.0,102190.0,0.21271388]
[1738177505984,0.00314685,102220.0,102210.0,0.195699]
[1738177506282,0.00014685,102220.0,102210.0,0.195699]
[1738177506483,0.36094685,102220.0,102210.0,0.195699]
[1738177506882,0.55662985,102220.0,102200.0,0.195715]
[1738177507180,0.55662985,102220.0,102190.0,0.19587985]
[1738177507181,0.556505,102210.0,102190.0,0.19587985]
[1738177507385,0.556518,102200.0,102190.0,0.00014685]
[1738177507973,0.87336703,102200.0,102160.0,0.00146807]
[1738177508173,0.556576,102170.0,102160.0,0.00146807]
[1738177508379,0.3608,102180.0,102170.0,0.195776]
[1738177508578,0.3608,102180.0,102160.0,0.00146807]
[1738177508777,0.195744,102190.0,102160.0,0.00146807]
[1738177508976,0.3608,102180.0,102170.0,0.195765]
[1738177509184,0.3608,102180.0,102160.0,0.00146807]
[1738177509484,0.556576,102170.0,102160.0,0.00014685]
[1738177509784,0.3608,102170.0,102160.0,0.00014685]
[1738177509985,0.3608,102180.0,102160.0,0.00014685]
[1738177510186,0.3608,102180.0,102170.0,0.40834303]
[1738177510583,0.3608,102180.0,102170.0,0.195776]
[1738177510886,0.556557,102180.0,102160.0,0.00114685]
[1738177511187,0.556576,102170.0,102160.0,0.00114685]
[1738177512380,0.3608,102150.0,102120.0,0.00146862]
[1738177512690,0.6608,102170.0,102110.0,0.23122534]
[1738177512691,0.195872,102120.0,102110.0,0.23122534]
[1738177512876,0.3608,102120.0,102110.0,0.42711634]
[1738177513077,0.556672,102120.0,102110.0,0.42711634]
[1738177513483,0.3608,102120.0,102110.0,0.42711634]
[1738177513989,1e-08,102130.0,102120.0,0.195872]
[1738177514490,1e-08,102130.0,102120.0,1.6451373]
[1738177514689,1e-08,102130.0,102120.0,1.69351129]
[1738177514987,0.3638,102170.0,102160.0,0.195795]
[1738177515183,0.3638,102170.0,102150.0,0.21256703]
[1738177515381,0.3608,102160.0,102150.0,0.195804]
[1738177515580,0.556595,102160.0,102140.0,0.195824]
[1738177515785,0.3608,102150.0,102130.0,0.00146863]
[1738177515991,0.195863,102130.0,102110.0,0.196886]
[1738177516187,0.3608,102120.0,102110.0,1.695886]
[1738177516581,0.3608,102120.0,102110.0,1.69603285]
[1738177516780,0.3608,102120.0,102110.0,1.50014685]
[1738177516992,0.556672,102120.0,102110.0,0.00014685]
[1738177517394,0.556672,102120.0,102110.0,0.34713532]
[1738177517592,0.55780185,102130.0,102110.0,0.54302632]
[1738177517787,0.3608,102120.0,102110.0,0.54302632]
[1738177517993,0.556672,102120.0,102110.0,0.34713532]
[1738177518783,0.87436703,102120.0,102080.0,0.57703029]
[1738177519097,0.556768,102070.0,102060.0,0.98313399]
[1738177519298,0.556768,102070.0,102060.0,0.98509362]
[1738177519491,0.856768,102070.0,102060.0,0.98509362]
[1738177519689,1.217568,102070.0,102060.0,0.04378408]
[1738177519895,1.217568,102070.0,102060.0,8e-08]
[1738177520295,0.917568,102070.0,102060.0,8e-08]
[1738177520896,0.21271388,102080.0,102070.0,0.195968]
[1738177521084,0.36094685,102080.0,102070.0,0.195968]
[1738177521290,0.55689485,102080.0,102070.0,0.195968]
[1738177521592,0.00014685,102080.0,102070.0,0.195968]
[1738177521792,0.3608,102130.0,102070.0,0.87336703]
[1738177522006,0.57336703,102140.0,102110.0,0.195891]
[1738177522007,0.23053909,102120.0,102110.0,0.195891]
[1738177522294,0.0014695,102140.0,102130.0,0.195852]
[1738177522495,0.19725298,102170.0,102140.0,0.195819]
[1738177522686,0.00146898,102170.0,102160.0,0.3608]
[1738177522894,0.195739,102190.0,102170.0,0.195766]
[1738177523186,0.00210418,102180.0,102170.0,0.195766]
[1738177523892,0.55866118,102180.0,102160.0,2.05673785]
[1738177524093,0.00210418,102180.0,102160.0,0.55673785]
[1738177524299,0.00210418,102180.0,102170.0,0.195776]
[1738177524488,0.00210418,102180.0,102170.0,0.556576]
[1738177524887,0.19787918,102180.0,102160.0,1.86202685]
[1738177525090,0.00195752,102170.0,102160.0,2.05674185]
[1738177525293,0.00310418,102180.0,102170.0,0.195776]
[1738177525491,0.11530207,102200.0,102170.0,0.57336703]
[1738177525701,0.11530207,102200.0,102190.0,0.556537]
[1738177526604,0.11530207,102200.0,102180.0,0.721455]
[1738177526807,0.3278691,102200.0,102180.0,0.1649]
[1738177526990,0.195737,102190.0,102180.0,0.16504685]
[1738177527307,0.195737,102190.0,102180.0,0.00014685]
[1738177527692,0.3608,102190.0,102180.0,0.00014685]
[1738177527894,0.11530207,102200.0,102190.0,0.195737]
[1738177528195,0.11691757,102210.0,102200.0,0.195718]
[1738177528404,0.11691757,102210.0,102190.0,2.056536]
[1738177528698,0.11691757,102210.0,102190.0,1.8608]
[1738177528902,0.003,102200.0,102190.0,1.8608]
[1738177529201,0.003,102200.0,102190.0,2.056537]
[1738177529601,0.11691757,102210.0,102190.0,1.8608]
[1738177529807,0.00214685,102210.0,102200.0,0.556518]
[1738177530098,0.11677002,102240.0,102210.0,0.195688]
[1738177530405,0.11677002,102240.0,102220.0,0.195674]
[1738177530905,0.11677002,102240.0,102230.0,0.556461]
[1738177531095,0.11677002,102240.0,102230.0,0.76902803]
[1738177531403,0.11677002,102240.0,102230.0,0.195661]
[1738177531600,0.11677002,102240.0,102230.0,0.556461]
[1738177531799,0.11530207,102240.0,102230.0,0.76902803]
[1738177532006,0.11530207,102240.0,102230.0,2.26902803]
[1738177532204,0.00014685,102250.0,102240.0,0.195642]
[1738177532400,0.00014685,102250.0,102240.0,0.556442]
[1738177532794,0.54577953,102290.0,102270.0,0.195568]
[1738177532993,0.54577953,102290.0,102270.0,0.556368]
[1738177533194,0.54577953,102290.0,102280.0,0.556365]
[1738177533398,0.28607953,102290.0,102280.0,0.556365]
[1738177533599,0.28607953,102290.0,102280.0,0.195565]
[1738177533797,0.28607953,102290.0,102280.0,0.556365]
[1738177534004,0.16097953,102290.0,102280.0,0.556365]
[1738177534311,0.41364783,102300.0,102290.0,0.195546]
[1738177534603,0.10014685,102300.0,102290.0,0.556346]
[1738177534797,0.10014685,102300.0,102290.0,0.195546]
[1738177534995,0.10014685,102300.0,102290.0,0.76891303]
[1738177535198,0.10014685,102300.0,102290.0,0.40811303]
[1738177535408,0.10014685,102300.0,102290.0,0.76891303]
[1738177535409,0.10314685,102300.0,102290.0,0.76891303]
[1738177535805,0.23043783,102330.0,102310.0,0.21256703]
[1738177536000,0.23043783,102330.0,102320.0,0.556289]
[1738177536513,0.78671183,102330.0,102310.0,0.11120496]
[1738177536708,0.42591183,102330.0,102300.0,0.556313]
[1738177537009,0.23053331,102330.0,102310.0,0.21271388]
[1738177537309,0.23053331,102330.0,102320.0,0.556289]
[1738177537799,0.23653331,102330.0,102320.0,0.96945649]
[1738177537999,0.23653331,102330.0,102320.0,0.556289]
[1738177538195,0.59733331,102330.0,102310.0,0.08802685]
[1738177538408,0.195489,102320.0,102310.0,0.00114685]
[1738177538706,0.556289,102320.0,102310.0,1e-08]
[1738177539406,0.556289,102320.0,102310.0,0.00300001]
[1738177540005,0.3608,102320.0,102310.0,0.00300001]
[1738177540305,0.556289,102320.0,102310.0,0.00300001]
[1738177541101,0.559289,102320.0,102310.0,1e-08]
[1738177542007,0.76885603,102320.0,102310.0,1e-08]
[1738177542208,0.560289,102320.0,102310.0,1e-08]
[1738177542606,1.07285603,102320.0,102310.0,1e-08]
[1738177542810,0.00033738,102310.0,102280.0,0.19702652]
[1738177543003,0.3608,102300.0,102280.0,0.19702652]
[1738177543203,0.00033738,102310.0,102280.0,0.36226652]
[1738177543415,0.00033738,102310.0,102300.0,0.195527]
[1738177543607,0.00033738,102310.0,102300.0,0.556327]
[1738177544912,0.00133738,102310.0,102300.0,0.562327]
[1738177545518,0.36226635,102360.0,102310.0,0.195508]
[1738177545705,0.36226635,102360.0,102340.0,0.195437]
[1738177545706,0.55767935,102360.0,102340.0,0.195437]
[1738177545907,0.00146635,102360.0,102350.0,0.195432]
[1738177546104,0.3608,102380.0,102340.0,2.07336703]
[1738177546308,0.56177307,102390.0,102380.0,0.195374]
[1738177546309,0.20097307,102390.0,102380.0,0.195374]
[1738177546511,0.20097307,102390.0,102380.0,0.556174]
[1738177547912,0.67576675,102420.0,102390.0,0.195352]
[1738177548110,0.36226577,102420.0,102390.0,0.195338]
[1738177548303,0.36226577,102420.0,102390.0,0.57336703]
[1738177548502,0.36226577,102420.0,102410.0,1.695317]
[1738177548703,0.15327567,102430.0,102420.0,0.195298]
[1738177548916,0.15327567,102430.0,102420.0,0.556098]
[1738177549106,0.19934669,102440.0,102420.0,0.556098]
[1738177549107,0.19934669,102440.0,102430.0,0.195279]
[1738177549304,0.19934669,102440.0,102430.0,0.76864603]
[1738177549707,0.19934669,102440.0,102430.0,0.21256703]
[1738177550018,0.195279,102430.0,102410.0,0.64176285]
[1738177550205,0.19934669,102440.0,102410.0,1.5]
[1738177550206,0.556062,102440.0,102410.0,1.5]
[1738177550405,0.556062,102440.0,102390.0,0.67511169]
[1738177550406,0.3608,102420.0,102390.0,0.19681866]
[1738177550611,0.3608,102420.0,102390.0,0.00146466]